bitfinex/quotes_ETHUSD_20250414
["timestamp","ask_amount","ask_price","bid_price","bid_amount"]
[1744660392981,5.857,1634.8,1634.5,6.11794]
[1744660393620,5.857,1634.8,1634.6,6.11764]
[1744660393824,5.857,1634.8,1634.6,12.23524]
[1744660394008,13.01021,1635.0,1634.6,7.341124]
[1744660394186,0.7539,1635.0,1634.7,0.06117132]
[1744660394388,6.87011,1635.0,1634.7,6.11708]
[1744660394698,6.11621,1635.0,1634.7,6.11708]
[1744660394918,6.14,1635.1,1634.7,6.11708]
[1744660395087,18.37221,1635.1,1634.8,6.11691]
[1744660395287,18.37221,1635.1,1634.7,7.10440782]
[1744660395288,6.11622,1635.0,1634.7,7.10440782]
[1744660395522,6.14,1635.1,1634.8,6.11683]
[1744660395722,6.14,1635.1,1634.9,6.1164]
[1744660396024,12.25583,1635.1,1634.8,6.11681]
[1744660396235,12.25583,1635.1,1634.8,7.43894978]
[1744660396415,12.25583,1635.1,1634.8,13.55578978]
[1744660396618,6.14,1635.1,1634.9,6.11656]
[1744660396789,6.14,1635.1,1635.0,6.1162]
[1744660396986,6.14,1635.1,1635.0,7.339465]
[1744660397535,10.71831239,1635.4,1635.1,6.1156]
[1744660397733,16.83303239,1635.4,1635.0,7.339425]
[1744660398031,6.11511,1635.3,1635.0,13.455505]
[1744660398395,6.11511,1635.3,1635.0,7.339345]
[1744660398598,6.1156,1635.2,1634.9,0.7584]
[1744660399020,6.11587,1635.1,1634.8,6.11658]
[1744660399224,6.11587,1635.1,1634.7,3.96562601]
[1744660399225,12.23199,1635.1,1634.7,10.08280601]
[1744660399426,6.11555,1635.2,1634.7,2.97829819]
[1744660399622,6.11555,1635.2,1634.8,6.11694]
[1744660399838,6.11596,1635.1,1634.8,6.11682]
[1744660400050,6.11596,1635.1,1634.8,12.23365]
[1744660400260,12.23211,1635.1,1634.8,6.11682]
[1744660400411,6.11626,1635.0,1634.7,2.97829819]
[1744660400740,9.92376,1635.0,1634.4,9.86599819]
[1744660401053,6.11668,1634.9,1634.6,6.11739]
[1744660401277,0.8073,1635.0,1634.4,9.86593819]
[1744660401413,0.8073,1635.0,1634.5,12.23601]
[1744660401414,6.11658,1634.9,1634.5,12.23601]
[1744660401839,6.11658,1634.9,1634.4,6.88738]
[1744660402030,6.1176,1634.7,1634.3,6.1187]
[1744660402225,12.23517,1634.7,1634.4,6.11843]
[1744660402656,6.11783,1634.6,1634.3,12.23741]
[1744660403013,6.11821,1634.5,1634.2,6.90313]
[1744660403315,6.11783,1634.6,1634.2,8.205464]
[1744660403659,6.11783,1634.6,1634.2,14.324554]
[1744660403660,6.11808,1634.5,1634.2,14.324554]
[1744660403831,12.2365,1634.5,1634.1,6.11956]
[1744660404158,6.11808,1634.5,1634.2,6.11911]
[1744660405357,6.11858,1634.4,1634.1,6.11956]
[1744660405561,6.14,1634.5,1634.3,6.11855]
[1744660405859,12.25821,1634.5,1634.2,6.11916]
[1744660406829,18.37647,1634.5,1634.1,13.84037582]
[1744660407247,6.11854,1634.4,1634.1,7.72089582]
[1744660407452,6.88424,1634.4,1634.0,6.91624]
[1744660407665,12.23874,1634.2,1633.9,6.12024]
[1744660407962,6.11933,1634.2,1633.9,10.12024]
[1744660409079,6.11933,1634.2,1633.9,6.12024]
[1744660409240,12.25891,1634.3,1634.0,6.11983]
[1744660409432,12.25891,1634.3,1634.0,6.11979]
[1744660409638,18.37794,1634.3,1634.0,6.11979]
[1744660409985,12.23888,1634.2,1633.9,6.12026]
[1744660410477,12.23877,1634.2,1633.8,16.03059819]
[1744660410640,6.11924,1634.2,1633.8,16.03059819]
[1744660411378,6.14,1634.3,1634.1,6.11926]
[1744660411672,6.14,1634.3,1634.0,6.11988]
[1744660411850,6.14,1634.3,1634.1,6.11946]
[1744660412173,6.14,1634.3,1634.2,6.1192]
[1744660412385,6.14,1634.3,1634.1,6.11956]
[1744660412687,6.14,1634.3,1634.2,6.1192]
[1744660413377,5.858,1634.7,1634.4,6.11832]
[1744660413578,11.97534,1634.7,1634.4,12.23663]
[1744660413870,16.25409239,1634.9,1634.5,6.9444]
[1744660414082,16.25409239,1634.9,1634.6,6.11769]
[1744660414587,16.25409239,1634.9,1634.6,6.11755]
[1744660414588,10.13741239,1634.9,1634.6,6.11755]
[1744660414884,10.13741239,1634.9,1634.7,12.23448]
[1744660415168,10.13741239,1634.9,1634.5,0.8266]
[1744660415379,10.13741239,1634.9,1634.7,6.11717]
[1744660415577,0.8157,1635.0,1634.6,6.1176]
[1744660415776,6.11658,1634.9,1634.6,0.69442]
[1744660415934,6.11767,1634.7,1634.3,6.93371]
[1744660416136,6.11795,1634.6,1634.2,12.2382]
[1744660416351,6.11795,1634.6,1634.3,6.11879]
[1744660416551,6.11743,1634.7,1634.4,6.11842]
[1744660416948,6.93641,1634.8,1634.4,6.11834]
[1744660417151,6.93641,1634.8,1634.4,7.84300382]
[1744660417340,6.11733,1634.7,1634.4,7.84300382]
[1744660417673,12.23486,1634.7,1634.4,7.84300382]
[1744660417877,6.11733,1634.7,1634.4,7.84300382]
[1744660418377,6.11774,1634.6,1634.3,9.09702819]
[1744660418672,12.23563,1634.6,1634.3,9.09702819]
[1744660418862,6.11774,1634.6,1634.3,9.09702819]
[1744660419372,6.11774,1634.6,1634.2,13.05317]
[1744660419581,6.11812,1634.5,1634.2,13.05312]
[1744660419872,6.11812,1634.5,1634.2,13.05313]
[1744660420175,6.11812,1634.5,1634.2,15.05627282]
[1744660420378,6.89268,1634.4,1634.0,7.505958]
[1744660420578,6.11893,1634.3,1634.0,7.505958]
[1744660420739,6.11893,1634.3,1634.0,7.505908]
[1744660420935,6.8927,1634.4,1634.1,6.11947]
[1744660421178,0.7742,1634.4,1634.0,1.386088]
[1744660421347,0.7742,1634.4,1633.7,6.89512]
[1744660421348,6.12028,1634.0,1633.7,6.89512]
[1744660421543,6.11968,1634.1,1633.7,6.89512]
[1744660421735,6.12017,1634.0,1633.7,6.89515]
[1744660421940,6.11965,1634.1,1633.8,6.12056]
[1744660422171,6.11965,1634.1,1633.7,6.89507]
[1744660422379,16.47008527,1634.2,1633.8,6.12038]
[1744660422594,6.11958,1634.1,1633.8,6.12038]
[1744660422799,9.89341,1634.2,1633.8,6.12038]
[1744660423101,9.89341,1634.2,1633.8,6.8787787]
[1744660423301,3.7742,1634.2,1633.7,0.7741]
[1744660423597,12.2403,1634.0,1633.7,6.89506]
[1744660423774,6.11973,1634.1,1633.7,6.89506]
[1744660423968,6.11973,1634.1,1633.8,6.12054]
[1744660424181,3.7742,1634.2,1633.7,6.89513]
[1744660424355,6.11964,1634.1,1633.8,6.12056]
[1744660424793,12.23956,1634.1,1633.7,13.01606]
[1744660425382,3.7742,1634.2,1633.6,12.24265]
[1744660425383,9.89343,1634.2,1633.6,12.24265]
[1744660425593,6.12009,1634.0,1633.7,6.12107]
[1744660425764,6.12009,1634.0,1633.7,7.345308]
[1744660426095,12.24028,1634.0,1633.7,7.345308]
[1744660426289,6.12009,1634.0,1633.7,7.345308]
[1744660426457,6.12009,1634.0,1633.7,13.466268]
[1744660426802,16.0128,1634.2,1633.8,6.12041]
[1744660426964,6.11959,1634.1,1633.8,6.12041]
[1744660427295,6.11959,1634.1,1633.8,12.24099]
[1744660427592,9.89342,1634.2,1633.9,6.12029]
[1744660427792,6.11922,1634.2,1633.9,6.12015]
[1744660427993,24.1439,1634.3,1633.9,6.12015]
[1744660428493,18.0249,1634.3,1634.0,6.11988]
[1744660428665,11.906,1634.3,1634.1,6.11953]
[1744660428871,5.766,1634.3,1634.1,6.11953]
[1744660429296,5.766,1634.3,1634.1,8.095768]
[1744660429495,5.766,1634.3,1634.2,6.1192]
[1744660429666,5.766,1634.3,1634.1,14.215198]
[1744660429999,5.766,1634.3,1633.7,6.1209]
[1744660430000,6.14,1634.2,1633.7,6.1209]
[1744660430302,6.14,1634.2,1633.3,6.12255]
[1744660430303,12.24099,1633.9,1633.5,6.94167]
[1744660430511,6.12108,1633.7,1633.5,0.8199]
[1744660430666,12.24237,1633.7,1633.3,6.94236]
[1744660431011,0.8189,1633.8,1633.3,6.94236]
[1744660431012,6.12182,1633.5,1633.4,4.0]
[1744660431357,6.12182,1633.5,1633.3,0.8199]
[1744660431557,6.12231,1633.4,1633.1,0.7682]
[1744660431771,12.24477,1633.4,1633.1,0.7682]
[1744660432499,6.12325,1633.2,1632.9,0.7604]
[1744660432671,6.12325,1633.2,1632.9,6.88432]
[1744660432877,6.12325,1633.2,1632.9,13.00824]
[1744660433708,6.14,1633.3,1633.0,6.12369]
[1744660433861,12.2629,1633.3,1632.9,6.88435]
[1744660434199,11.907,1633.5,1633.1,0.8162]
[1744660434503,12.24511,1633.4,1633.0,12.24713]
[1744660435068,6.12255,1633.4,1633.0,12.24713]
[1744660435279,12.6635,1633.8,1633.2,0.8297]
[1744660435479,12.6635,1633.8,1633.5,6.12171]
[1744660435816,5.768,1634.1,1633.7,0.8011]
[1744660436112,12.25885,1634.3,1634.0,6.11984]
[1744660436268,12.25891,1634.3,1633.8,6.12054]
[1744660436610,12.25891,1634.3,1633.9,6.732234]
[1744660436770,12.25891,1634.3,1634.0,6.11983]
[1744660436972,12.25891,1634.3,1634.0,6.93893]
[1744660437290,4.81431239,1634.4,1634.0,0.8191]
[1744660437608,3.99741239,1634.4,1634.2,12.2381]
[1744660437779,3.99741239,1634.4,1634.2,13.46802888]
[1744660437978,3.99741239,1634.4,1634.3,6.11882]
[1744660438702,3.99741239,1634.4,1634.3,6.89792]
[1744660439384,18.00295,1634.7,1634.3,6.89792]
[1744660439585,18.00295,1634.7,1634.3,13.01658]
[1744660439767,18.00295,1634.7,1634.3,14.44123089]
[1744660440219,6.1174,1634.7,1634.4,6.11843]
[1744660440509,53.83485,1634.9,1634.4,6.11843]
[1744660441211,6.11711,1634.8,1634.4,6.11832]
[1744660441410,6.11735,1634.7,1634.4,6.11832]
[1744660441613,6.11735,1634.7,1634.5,0.611832]
[1744660441776,6.1177,1634.6,1634.3,8.32250089]
[1744660441976,6.1177,1634.6,1634.3,8.32240089]
[1744660442178,6.1177,1634.6,1634.3,14.44109089]
[1744660442476,53.83493,1634.9,1634.4,6.11845]
[1744660442477,6.11697,1634.8,1634.4,6.11845]
[1744660442684,6.11697,1634.8,1634.5,6.11796]
[1744660442912,6.11697,1634.8,1634.5,12.85382389]
[1744660443221,6.93163,1635.2,1634.8,6.11665]
[1744660443383,6.11664,1634.9,1634.6,6.93779]
[1744660443710,6.11634,1635.0,1634.7,6.11733]
[1744660443911,6.11634,1635.0,1634.6,8.30512739]
[1744660444124,6.11634,1635.0,1634.6,14.42268739]
[1744660444418,6.11634,1635.0,1634.7,6.11731]
[1744660445116,0.8161,1635.2,1634.9,12.23279]
[1744660445316,6.11527,1635.3,1635.0,1.223279]
[1744660445482,12.23057,1635.3,1634.9,13.01449]
[1744660445683,6.11527,1635.3,1634.9,13.01449]
[1744660445883,12.23065,1635.3,1634.9,6.89809]
[1744660446080,6.11527,1635.3,1634.9,13.01448]
[1744660446283,0.05,1635.4,1635.2,6.11522]
[1744660446583,0.05,1635.4,1635.3,6.17623108]
[1744660446917,0.05,1635.4,1635.3,6.11508]
[1744660447123,0.05,1635.4,1635.3,6.1762222]
[1744660447278,0.05,1635.4,1635.3,6.11508]
[1744660447480,0.05,1635.4,1635.3,7.41467]
[1744660448299,0.05,1635.4,1635.3,7.47581222]
[1744660448602,0.05,1635.4,1635.3,7.41467]
[1744660450420,0.05,1635.4,1635.3,8.2588078]
[1744660450619,0.05,1635.4,1635.3,8.19767]
[1744660451490,0.05,1635.4,1635.3,12.19767]
[1744660452011,0.05,1635.4,1635.3,4.783]
[1744660452322,0.05,1635.4,1635.3,0.783]
[1744660453316,0.05,1635.4,1635.3,6.89808]
[1744660453649,0.05,1635.4,1635.3,6.95921674]
[1744660453932,0.05,1635.4,1635.3,6.89808]
[1744660454135,0.05,1635.4,1635.3,9.11941811]
[1744660455140,0.05,1635.4,1635.3,9.18055454]
[1744660455453,0.05,1635.4,1635.3,13.11941811]
[1744660455598,0.05,1635.4,1635.3,21.87041811]
[1744660456953,5.751,1636.3,1635.3,21.87041811]
[1744660456954,6.1613,1636.4,1635.6,3.0]
[1744660457247,12.8886,1636.4,1636.0,6.11226]
[1744660457448,12.27247,1636.4,1636.0,6.11226]
[1744660457604,12.27247,1636.4,1635.8,3.08480105]
[1744660457605,6.11195,1636.2,1635.8,6.11309]
[1744660457800,6.11193,1636.2,1635.8,6.11309]
[1744660458099,6.11193,1636.2,1635.9,6.11281]
[1744660458313,6.1121,1636.1,1635.8,6.11304]
[1744660458543,0.8009,1636.3,1635.8,1.297935]
[1744660458719,6.11192,1636.2,1635.8,6.11307]
[1744660459105,13.02017,1636.0,1635.6,6.11382]
[1744660460111,6.90752,1636.0,1635.6,0.06113279]
[1744660460313,0.7949,1636.0,1635.7,6.11344]
[1744660460542,6.90748,1636.0,1635.7,7.336173]
[1744660460754,0.7949,1636.0,1635.7,13.449643]
[1744660461048,0.7949,1636.0,1635.7,13.449593]
[1744660461457,6.90739,1636.0,1635.7,1.222733]
[1744660462655,6.90739,1636.0,1635.7,7.336313]
[1744660463559,6.90739,1636.0,1635.7,1.222733]
[1744660463864,6.90739,1636.0,1635.7,7.336063]
[1744660464221,13.02007,1636.0,1635.7,1.222733]
[1744660464427,13.02007,1636.0,1635.6,12.22774]
[1744660464814,6.11299,1635.9,1635.6,6.11385]
[1744660465215,6.86834,1635.9,1635.3,9.08777811]
[1744660465416,6.86834,1635.9,1635.4,4.0]
[1744660465417,6.87356,1635.6,1635.4,4.0]
[1744660465721,0.7594,1635.6,1635.3,6.11494]
[1744660466055,11.86359,1635.7,1635.4,6.1146]
[1744660466255,11.86359,1635.7,1635.4,6.11459]
[1744660466555,11.86359,1635.7,1635.3,12.22999]
[1744660466728,11.86359,1635.7,1635.4,6.11469]
[1744660467062,5.75,1635.7,1635.4,12.22926]
[1744660467228,11.86362,1635.7,1635.4,6.11457]
[1744660467662,11.86362,1635.7,1635.4,12.22914]
[1744660467873,17.9775,1635.7,1635.3,6.11499]
[1744660468166,17.9775,1635.7,1635.3,6.726489]
[1744660468463,11.86362,1635.7,1635.4,6.11466]
[1744660469067,11.89,1635.7,1635.1,0.8221]
[1744660469230,6.1158,1635.2,1634.9,0.809]
[1744660469430,6.11588,1635.1,1634.8,6.11688]
[1744660469625,6.11631,1635.0,1634.7,6.91099]
[1744660469945,6.11631,1635.0,1634.7,13.02828]
[1744660470352,3.8123,1635.2,1634.9,6.11644]
[1744660470520,9.92791,1635.2,1634.9,6.11644]
[1744660470719,9.92791,1635.2,1634.8,6.11667]
[1744660471124,9.92791,1635.2,1634.9,6.1163]
[1744660471321,6.11586,1635.1,1634.8,1.302761]
[1744660471520,6.92784,1635.2,1634.8,7.419591]
[1744660471751,6.11593,1635.1,1634.8,13.536421]
[1744660472342,6.92784,1635.2,1634.9,6.11656]
[1744660473039,13.04356,1635.2,1634.8,13.536421]
[1744660473377,13.04346,1635.2,1634.9,6.11658]
[1744660473672,0.8123,1635.2,1634.9,6.11645]
[1744660473872,6.92778,1635.2,1634.9,6.11645]
[1744660474372,6.1159,1635.1,1634.8,7.419601]
[1744660474676,6.11624,1635.0,1634.7,12.23441]
[1744660474835,6.1159,1635.1,1634.8,6.1169]
[1744660475040,6.9523,1635.2,1634.7,6.1172]
[1744660475249,12.23281,1635.0,1634.6,6.1177]
[1744660475450,6.1166,1634.9,1634.6,6.1177]
[1744660475769,15.23201,1635.1,1634.7,6.17840995]
[1744660475964,15.23201,1635.1,1634.7,6.11724]
[1744660476165,6.11621,1635.0,1634.6,7.419979]
[1744660476481,12.23259,1635.0,1634.6,13.537559]
[1744660476667,6.11621,1635.0,1634.7,6.11713]
[1744660477585,6.1171,1634.8,1634.5,6.11792]
[1744660477886,12.23434,1634.8,1634.4,12.23682]
[1744660478058,12.23434,1634.8,1634.5,10.11803]
[1744660478059,6.1171,1634.8,1634.5,10.11803]
[1744660478262,12.23426,1634.8,1634.5,6.11803]
[1744660478584,6.1171,1634.8,1634.5,6.11803]
[1744660479386,17.98536,1634.9,1634.5,12.23612]
[1744660479570,6.11698,1634.8,1634.5,6.11806]
[1744660479970,5.752,1634.9,1634.5,6.11806]
[1744660480176,6.11663,1634.9,1634.4,1.300232]
[1744660480393,0.7947,1635.4,1635.3,6.11508]
[1744660480683,6.90962,1635.4,1635.0,6.11601]
[1744660480888,6.1152,1635.3,1635.0,6.11601]
[1744660481047,0.7947,1635.4,1635.2,6.11533]
[1744660481246,0.7947,1635.4,1635.3,6.11508]
[1744660481443,0.7947,1635.4,1635.1,6.11576]
[1744660481654,0.7947,1635.4,1635.1,12.843036]
[1744660481888,0.7947,1635.4,1635.1,6.727276]
[1744660482561,6.90943,1635.4,1635.1,6.727256]
[1744660482762,12.25465,1635.5,1635.1,6.727256]
[1744660482763,6.91203,1635.6,1635.3,6.11507]
[1744660483058,0.798,1635.6,1635.3,12.841517]
[1744660483285,12.25374,1635.7,1635.4,6.11467]
[1744660483593,6.90023,1635.8,1635.5,6.11432]
[1744660483746,13.01381,1635.8,1635.4,12.22914]
[1744660483946,6.11366,1635.7,1635.4,6.11456]
[1744660484183,6.11366,1635.7,1635.4,0.6726067]
[1744660484497,6.11397,1635.6,1635.2,6.11533]
[1744660484645,3.7868,1635.8,1635.2,0.06114506]
[1744660484851,3.7868,1635.8,1635.2,6.1154]
[1744660484852,6.11451,1635.5,1635.2,6.1154]
[1744660485063,6.11451,1635.5,1635.2,6.11529]
[1744660485277,12.22812,1635.6,1635.2,12.23072]
[1744660485592,1.222812,1635.6,1635.1,13.648726]
[1744660485793,10.06591297,1636.1,1635.3,3.08480105]
[1744660485794,12.2525,1636.0,1635.3,3.08480105]
[1744660486098,6.87125,1635.9,1635.6,6.11384]
[1744660486385,6.11352,1635.8,1635.4,12.22922]
[1744660486599,6.800555,1635.8,1635.5,6.11433]
[1744660486897,6.1136,1635.7,1635.4,6.11459]
[1744660487299,6.1136,1635.7,1635.4,12.22919]
[1744660487796,0.687125,1635.8,1635.2,2.0741846]
[1744660487996,12.6545,1635.7,1635.0,6.87206]
[1744660488199,6.11481,1635.4,1635.1,6.11549]
[1744660488405,6.89931,1635.4,1635.0,10.87207]
[1744660488761,6.89931,1635.4,1635.1,6.11579]
[1744660489096,13.01417,1635.4,1635.1,6.11579]
[1744660489285,6.89931,1635.4,1635.1,6.11573]
[1744660489460,13.01417,1635.4,1635.1,6.11573]
[1744660489662,13.01417,1635.4,1635.0,12.9881]
[1744660489856,0.7845,1635.4,1635.2,6.11541]
[1744660490093,6.89929,1635.4,1635.1,6.11575]
[1744660490304,6.9729,1635.7,1635.5,6.11415]
[1744660490473,6.94664,1635.7,1635.3,6.11495]
[1744660490671,0.694664,1635.6,1635.3,12.22992]
[1744660490900,6.11399,1635.6,1635.3,6.11495]
[1744660491365,6.11455,1635.5,1635.2,6.11536]
[1744660491568,6.11455,1635.5,1635.2,6.11523]
[1744660491766,0.8329,1635.7,1635.3,6.11507]
[1744660491963,6.94662,1635.7,1635.3,6.11475]
[1744660492201,13.06044,1635.7,1635.4,6.11468]
[1744660492387,6.1142,1635.6,1635.2,6.1153]
[1744660492709,6.11436,1635.5,1635.2,6.1153]
[1744660492906,6.11436,1635.5,1635.1,12.23145]
[1744660493069,6.11436,1635.5,1635.1,6.1157]
[1744660493409,6.11436,1635.5,1635.2,6.11545]
[1744660493410,12.22886,1635.5,1635.2,6.11545]
[1744660494113,6.11485,1635.4,1635.1,6.932741]
[1744660494321,6.11485,1635.4,1635.1,13.048461]
[1744660494502,3.7562,1635.4,1634.8,0.7829]
[1744660494704,6.87243,1635.0,1634.7,6.11722]
[1744660494891,12.98883,1635.0,1634.8,4.0]
[1744660495096,6.11658,1634.9,1634.8,4.0]
[1744660495791,6.11658,1634.9,1634.5,6.11794]
[1744660496117,8.171373,1635.0,1634.6,16.23512]
[1744660496425,3.0,1635.1,1634.8,6.1166]
[1744660496583,9.11587,1635.1,1634.8,6.1166]
[1744660496783,9.11587,1635.1,1634.7,6.91558]
[1744660496784,6.11634,1635.0,1634.7,6.91558]
[1744660497921,12.23272,1635.0,1634.7,6.91558]
[1744660498221,12.23272,1635.0,1634.3,3.08480105]
[1744660498222,0.7508,1634.8,1634.5,13.06368]
[1744660498412,0.7508,1634.8,1634.5,12.23563]
[1744660498583,0.7508,1634.8,1634.5,12.23567]
[1744660498783,6.11745,1634.7,1634.0,6.11959]
[1744660499013,6.11773,1634.6,1634.3,6.11863]
[1744660499425,6.11773,1634.6,1634.2,10.11913]
[1744660499629,6.11814,1634.5,1634.2,4.0]
[1744660499935,0.8133,1634.8,1634.5,6.11796]
[1744660500236,0.8133,1634.8,1634.3,0.7534]
[1744660500433,6.11786,1634.6,1634.2,4.0]
[1744660500590,6.93212,1634.3,1634.2,4.0]
[1744660500926,6.93212,1634.3,1633.7,6.12107]
[1744660500927,6.9533,1634.3,1633.7,6.12107]
[1744660501127,6.9533,1634.3,1634.2,6.1192]
[1744660501128,0.8133,1634.3,1634.2,6.1192]
[1744660501284,0.8133,1634.3,1633.9,6.94522]
[1744660501285,0.8133,1634.3,1633.9,0.8249]
[1744660501521,0.8133,1634.3,1633.8,10.12064]
[1744660501722,6.11932,1634.2,1633.8,13.334934]
[1744660502105,0.794,1634.1,1633.5,6.12165]
[1744660502413,6.12051,1633.9,1633.6,6.12137]
[1744660502597,11.872,1634.0,1633.5,0.06121211]
[1744660502802,17.99198,1634.0,1633.6,6.1212]
[1744660503108,6.14,1634.0,1633.6,0.61824121]
[1744660503313,6.14,1634.0,1633.7,6.12107]
[1744660503489,6.14,1634.0,1633.5,6.1217]
[1744660503689,0.8156,1633.9,1633.5,6.1217]
[1744660503884,6.12082,1633.8,1633.4,6.93994]
[1744660504204,0.8156,1633.9,1633.6,6.12114]
[1744660504386,0.8156,1633.9,1633.7,6.12105]
[1744660505490,6.12127,1633.7,1633.3,6.12244]
[1744660505810,0.8269,1633.7,1633.5,6.12178]
[1744660506010,6.94822,1633.7,1633.3,6.12256]
[1744660506216,13.06963,1633.7,1633.3,6.12256]
[1744660506553,6.12177,1633.6,1633.2,0.55]
[1744660506739,6.12257,1633.3,1633.2,0.55]
[1744660507032,6.93277,1633.3,1633.2,0.55]
[1744660507212,0.8102,1633.3,1633.2,0.55]
[1744660507419,15.66607,1633.5,1633.2,0.55]
[1744660507802,21.78811,1633.5,1633.2,0.55]
[1744660508327,6.12257,1633.3,1633.2,0.55]
[1744660509330,6.12248,1633.4,1633.2,0.55]
[1744660509515,6.12242,1633.4,1633.2,0.55]
[1744660509718,6.12257,1633.3,1633.2,0.55]
[1744660509917,0.7506,1633.3,1633.2,0.55]
[1744660510372,15.76154553,1633.5,1633.3,6.12244]
[1744660510373,6.4846,1633.5,1633.3,6.12244]
[1744660510649,20.03666299,1633.5,1633.2,0.55]
[1744660510833,6.12257,1633.3,1633.2,0.55]
[1744660511031,9.12236,1633.4,1633.2,0.55]
[1744660511032,6.12236,1633.4,1633.2,0.55]
[1744660511220,12.24474,1633.4,1633.2,0.55]
[1744660511403,6.12257,1633.3,1633.2,0.55]
[1744660511602,6.12236,1633.4,1633.2,0.55]
[1744660511824,13.64606155,1633.4,1633.2,0.55]
[1744660512017,7.52368155,1633.4,1633.2,0.55]
[1744660512221,6.91597,1633.3,1633.2,0.55]
[1744660513074,13.60597,1633.3,1633.2,0.55]
[1744660513230,13.05597,1633.3,1633.2,0.55]
[1744660513429,15.66393416,1633.3,1633.2,0.55]
[1744660513937,18.67883416,1633.3,1633.2,0.55]
[1744660515674,12.00626416,1633.3,1633.2,0.55]
[1744660515840,6.93087,1633.3,1633.2,0.55]
[1744660516375,6.12294,1633.2,1633.1,0.05]
[1744660516869,13.05365,1633.3,1633.1,0.05]
[1744660517033,0.8083,1633.3,1633.1,0.05]
[1744660517370,6.12294,1633.2,1633.1,0.05]
[1744660517572,14.973122,1633.3,1633.1,0.05]
[1744660517573,8.850372,1633.3,1633.1,0.05]
[1744660517758,6.93096,1633.3,1633.1,0.05]
[1744660517954,6.12294,1633.2,1633.1,0.05]
[1744660518835,13.56584,1633.2,1633.1,0.05]
[1744660519036,16.56584,1633.2,1633.1,0.05]
[1744660519444,16.56584,1633.2,1632.5,0.7597]
[1744660519445,6.12481,1632.8,1632.5,0.7597]
[1744660519747,6.12481,1632.8,1632.1,8.95580105]
[1744660519748,6.12523,1632.6,1632.3,6.93493]
[1744660519946,6.12523,1632.6,1632.1,0.05]
[1744660519947,6.12643,1632.3,1632.1,0.8588]
[1744660520335,6.12594,1632.4,1632.1,0.8588]
[1744660520336,6.12594,1632.4,1632.1,6.98583]
[1744660520540,7.67568551,1632.4,1632.1,6.98583]
[1744660520766,1.54974551,1632.4,1632.1,0.8588]
[1744660521077,11.962,1632.5,1632.3,6.12615]
[1744660521278,11.962,1632.5,1632.4,6.12594]
[1744660522343,6.14,1632.5,1632.4,6.92374]
[1744660523644,6.14,1632.5,1632.4,0.7978]
[1744660523844,6.14,1632.5,1632.4,6.92374]
[1744660524197,6.14,1632.5,1632.4,0.7978]
[1744660524347,6.14,1632.5,1632.3,6.12625]
[1744660524541,6.14,1632.5,1632.2,6.92611]
[1744660524745,6.9822436,1632.5,1632.1,0.05]
[1744660524943,18.08998,1632.4,1632.1,0.05]
[1744660525272,0.7748,1632.3,1632.1,6.17707]
[1744660525476,11.964,1632.4,1632.1,6.17695]
[1744660525773,13.91222236,1632.4,1632.2,6.12645]
[1744660526145,13.91222236,1632.4,1632.1,12.30388]
[1744660526346,13.91222236,1632.4,1632.1,0.05]
[1744660526589,6.12646,1632.3,1632.1,0.05]
[1744660526791,8.74292424,1632.3,1632.1,0.05]
[1744660527087,2.61646424,1632.3,1632.1,0.05]
[1744660527458,8.74280424,1632.3,1632.1,0.05]
[1744660527789,14.86946424,1632.3,1632.1,0.05]
[1744660528006,6.9599,1632.2,1632.1,0.05]
[1744660528377,8.53017042,1632.2,1632.1,0.05]
[1744660528778,18.22017042,1632.2,1632.1,0.05]
[1744660531987,17.67017042,1632.2,1632.1,0.05]
[1744660532187,18.22017042,1632.2,1632.1,0.05]
[1744660538837,6.12895,1631.6,1631.5,0.8175]
[1744660539044,6.12895,1631.6,1631.3,13.04538]
[1744660539438,6.12895,1631.6,1631.3,13.04534]
[1744660539610,12.25752,1631.7,1631.4,6.12957]
[1744660539813,6.12866,1631.7,1631.4,6.12957]
[1744660540020,12.25738,1631.7,1631.4,6.12957]
[1744660540223,6.12902,1631.6,1631.3,6.91537]
[1744660540545,8.031498,1631.7,1631.4,6.12939]
[1744660540749,14.160078,1631.7,1631.3,6.9154]
[1744660540915,6.12935,1631.5,1631.3,0.7854]
[1744660541256,12.25834,1631.6,1631.3,6.91546]
[1744660541550,1.4916338,1631.6,1631.4,6.12959]
[1744660541750,14.915408,1631.7,1631.4,6.12959]
[1744660541751,8.020068,1631.7,1631.4,6.12959]
[1744660542054,11.95533,1631.8,1631.5,6.12922]
[1744660542215,3.0,1631.8,1631.6,6.12887]
[1744660542551,6.12787,1631.9,1631.6,6.12872]
[1744660542757,12.722534,1632.0,1631.7,6.12857]
[1744660543051,15.1325891,1632.0,1631.7,6.12846]
[1744660543240,21.2602691,1632.0,1631.7,6.12846]
[1744660543553,6.12798,1631.9,1631.6,12.2577]
[1744660543756,6.12822,1631.8,1631.5,13.05274]
[1744660544754,6.12822,1631.8,1631.5,13.05264]
[1744660545122,6.12822,1631.8,1631.5,13.05262]
[1744660545330,6.12822,1631.8,1631.5,13.0526]
[1744660545855,12.25667,1631.8,1631.5,6.9234]
[1744660546150,7.353887,1631.8,1631.5,0.7942]
[1744660546352,6.12888,1631.7,1631.5,0.7942]
[1744660546556,1.225667,1631.8,1631.3,6.12997]